fUST/lending_fUST_20250921
["ID","MTS","AMOUNT","RATE_DAILY","PERIOD"]
[386659007,1758453051176,-480.0,0.00020547,2]
[386659009,1758453051185,-480.0,0.00020547,2]
[386659011,1758453051195,-312.19664976,0.00020547,2]
[386659013,1758453051207,-555.74,0.00020547,2]
[386659015,1758453051216,-1597.06,0.00020547,2]
[386659017,1758453051226,-480.0,0.00020547,2]
[386659019,1758453051235,-3050.76,0.00020547,2]
[386659021,1758453051243,-480.0,0.00020547,2]
[386659023,1758453051252,-480.0,0.00020547,2]
[386659025,1758453051262,-480.0,0.00020547,2]
[386659027,1758453051270,-964.98,0.00020547,2]
[386659029,1758453051279,-968.95,0.00020547,2]
[386659031,1758453051288,-480.0,0.00020547,2]
[386659033,1758453051298,-480.0,0.00020547,2]
[386659034,1758453051307,-878.63,0.00020547,2]
[386659036,1758453051316,-558.36,0.00020547,2]
[386659039,1758453051325,-1103.49,0.00020547,2]
[386659040,1758453051334,-428.30041284,0.00020547,2]
[386659042,1758453051344,-789.27,0.00020547,2]
[386659044,1758453051353,-480.0,0.00020547,2]
[386659046,1758453051362,-480.0,0.00020547,2]
[386659048,1758453051371,-480.0,0.00020547,2]
[386659050,1758453051380,-480.0,0.00020547,2]
[386659052,1758453051390,-480.0,0.00020547,2]
[386659054,1758453051399,-1887.16,0.00020547,2]
[386659056,1758453051408,-480.0,0.00020547,2]
[386659058,1758453051416,-480.0,0.00020547,2]
[386659060,1758453051426,-480.0,0.00020547,2]
[386659062,1758453051435,-480.0,0.00020547,2]
[386659064,1758453051443,-787.45,0.00020547,2]
[386659066,1758453051452,-480.0,0.00020547,2]
[386659068,1758453051461,-480.0,0.00020547,2]
[386659070,1758453051470,-480.0,0.00020547,2]
[386659072,1758453051479,-480.0,0.00020547,2]
[386659074,1758453051489,-1368.44,0.00020547,2]
[386659075,1758453051498,-480.0,0.00020547,2]
[386659077,1758453051507,-480.0,0.00020547,2]
[386659079,1758453051516,-480.0,0.00020547,2]
[386659081,1758453051526,-480.0,0.00020547,2]
[386659083,1758453051535,-480.0,0.00020547,2]
[386659085,1758453051544,-480.0,0.00020547,2]
[386659087,1758453051553,-480.0,0.00020547,2]
[386659089,1758453051564,-608.18,0.00020547,2]
[386659091,1758453051573,-480.0,0.00020547,2]
[386659093,1758453051583,-480.0,0.00020547,2]
[386659095,1758453051593,-480.0,0.00020547,2]
[386659097,1758453051602,-855.51,0.00020547,2]
[386659099,1758453051612,-480.0,0.00020547,2]
[386659101,1758453051621,-480.0,0.00020547,2]
[386659103,1758453051631,-912.57,0.00020547,2]
[386659105,1758453051640,-971.61,0.00020547,2]
[386659107,1758453051649,-886.06,0.00020547,2]
[386659109,1758453051658,-480.0,0.00020547,2]
[386659111,1758453051668,-967.35,0.00020547,2]
[386659113,1758453051677,-480.0,0.00020547,2]
[386659115,1758453051686,-480.0,0.00020547,2]
[386659117,1758453051695,-480.0,0.00020547,2]
[386659118,1758453051704,-480.0,0.00020547,2]
[386659120,1758453051713,-544.25,0.00020547,2]
[386659122,1758453051722,-480.0,0.00020547,2]
[386659124,1758453051731,-1500.0,0.00020568,2]
[386659125,1758453051740,-471.5733539,0.00020568,2]
[386659126,1758453051749,-539.7531653,0.00020568,2]
[386659127,1758453051758,-1500.0,0.00020568,2]
[386659128,1758453051767,-329.49260123,0.00020568,2]
[386659129,1758453051776,-1500.0,0.00020568,2]
[386659130,1758453051786,-1500.0,0.00020568,2]
[386659131,1758453051795,-1500.0,0.00020568,2]
[386659132,1758453051804,-500.0,0.00020568,2]
[386659133,1758453051815,-160.0,0.00020573,2]
[386659134,1758453051824,-417.15472785,0.00020574,2]
[386659135,1758453051833,-160.0,0.00020574,2]
[386659136,1758453051842,-160.0,0.00020574,2]
[386659137,1758453051852,-233.52200025,0.00020574,2]
[386659138,1758453051861,-160.0,0.00020574,2]
[386659139,1758453051870,-160.0,0.00020574,2]
[386659140,1758453051879,-160.0,0.00020574,2]
[386659141,1758453051888,-160.0,0.00020574,2]
[386659142,1758453051897,-848.42763433,0.00020574,2]
[386659143,1758453051906,-404.62448614,0.00020574,2]
[386659144,1758453051915,-1300.0,0.00020712,2]
[386659145,1758453051924,-151.0,0.000208,3]
[386659146,1758453051934,-1038.05082755,0.00020818,2]
[386659147,1758453051943,-15305.83289309,0.00020818,2]
[386659148,1758453051952,-168.3888056,0.00020818,2]
[386659149,1758453051961,-500.0,0.00020818,2]
[386659150,1758453051971,-500.0,0.00020818,2]
[386659151,1758453051979,-500.0,0.00020818,2]
[386659152,1758453051988,-500.0,0.00020818,2]
[386659153,1758453051997,-500.0,0.00020818,2]
[386659154,1758453052008,-500.0,0.00020818,2]
[386659155,1758453052017,-500.0,0.00020818,2]
[386659156,1758453052026,-500.0,0.00020818,2]
[386659157,1758453052035,-500.0,0.00020818,2]
[386659158,1758453052044,-583.2464814,0.00020821,2]
[386659159,1758453052053,-480.0,0.00020821,2]
[386659160,1758453052062,-500.47856204,0.00020821,2]
[386659161,1758453052071,-482.95168314,0.00020821,2]
[386659162,1758453052080,-480.0,0.00020821,2]
[386659163,1758453052090,-480.0,0.00020821,2]
[386659164,1758453052099,-480.0,0.00020821,2]
[386659165,1758453052108,-480.0,0.00020821,2]
[386659166,1758453052118,-480.0,0.00020821,2]
[386659167,1758453052128,-480.0,0.00020821,2]
[386659168,1758453052137,-8167.38,0.00020821,2]
[386659169,1758453052146,-480.0,0.00020821,2]
[386659170,1758453052156,-480.0,0.00020821,2]
[386659171,1758453052165,-480.0,0.00020821,2]
[386659172,1758453052174,-480.0,0.00020821,2]
[386659173,1758453052183,-480.0,0.00020821,2]
[386659174,1758453052192,-555.74,0.00020821,2]
[386659175,1758453052202,-1597.06,0.00020821,2]
[386659176,1758453052211,-480.0,0.00020821,2]
[386659177,1758453052222,-3050.76,0.00020821,2]
[386659178,1758453052230,-480.0,0.00020821,2]
[386659179,1758453052240,-492.57521216,0.00020821,2]
[386659180,1758453052248,-964.98,0.00020821,2]
[386659181,1758453052256,-968.95,0.00020821,2]
[386659182,1758453052264,-480.0,0.00020821,2]
[386659183,1758453052272,-480.0,0.00020821,2]
[386659184,1758453052280,-878.63,0.00020821,2]
[386659185,1758453052288,-1103.49,0.00020821,2]
[386659186,1758453052296,-558.36,0.00020821,2]
[386659187,1758453052306,-789.27,0.00020821,2]
[386659188,1758453052315,-480.0,0.00020821,2]
[386659189,1758453052324,-480.0,0.00020821,2]
[386659190,1758453052334,-480.0,0.00020821,2]
[386659191,1758453052343,-480.0,0.00020821,2]
[386659192,1758453052352,-480.0,0.00020821,2]
[386659193,1758453052362,-1887.16,0.00020821,2]
[386659194,1758453052371,-480.0,0.00020821,2]
[386659195,1758453052381,-480.0,0.00020821,2]
[386659196,1758453052390,-480.0,0.00020821,2]
[386659197,1758453052399,-787.45,0.00020821,2]
[386659198,1758453052408,-480.0,0.00020821,2]
[386659199,1758453052418,-548.41654058,0.00020821,2]
[386659200,1758453052427,-480.0,0.00020821,2]
[386659201,1758453052436,-480.0,0.00020821,2]
[386659202,1758453052445,-480.0,0.00020821,2]
[386659203,1758453052455,-1368.44,0.00020821,2]
[386659204,1758453052464,-480.0,0.00020821,2]
[386659205,1758453052474,-480.0,0.00020821,2]
[386659206,1758453052483,-480.0,0.00020821,2]
[386659207,1758453052492,-480.0,0.00020821,2]
[386659208,1758453052502,-480.0,0.00020821,2]
[386659209,1758453052511,-480.0,0.00020821,2]
[386659210,1758453052521,-608.18,0.00020821,2]
[386659211,1758453052530,-480.0,0.00020821,2]
[386659212,1758453052540,-480.0,0.00020821,2]
[386659213,1758453052549,-480.0,0.00020821,2]
[386659214,1758453052559,-855.51,0.00020821,2]
[386659215,1758453052568,-480.0,0.00020821,2]
[386659216,1758453052578,-480.0,0.00020821,2]
[386659217,1758453052588,-912.57,0.00020821,2]
[386659218,1758453052597,-971.61,0.00020821,2]
[386659219,1758453052607,-886.06,0.00020821,2]
[386659220,1758453052616,-480.0,0.00020821,2]
[386659221,1758453052625,-967.35,0.00020821,2]
[386659222,1758453052634,-480.0,0.00020821,2]
[386659223,1758453052644,-480.0,0.00020821,2]
[386659224,1758453052653,-480.0,0.00020821,2]
[386659225,1758453052662,-480.0,0.00020821,2]
[386659226,1758453052672,-544.25,0.00020821,2]
[386659227,1758453052681,-480.0,0.00020821,2]
[386659228,1758453052690,-500.0,0.00020843,2]
[386659230,1758453052700,-500.0,0.00020843,2]
[386659231,1758453052710,-500.0,0.00020843,2]
[386659232,1758453052719,-500.0,0.00020843,2]
[386659233,1758453052728,-500.0,0.00020843,2]
[386659234,1758453052738,-500.0,0.00020843,2]
[386659235,1758453052747,-500.0,0.00020843,2]
[386659236,1758453052756,-500.0,0.00020843,2]
[386659237,1758453052765,-500.0,0.00020843,2]
[386659238,1758453052775,-500.0,0.00020843,2]
[386659239,1758453052784,-500.0,0.00020843,2]
[386659240,1758453052794,-500.0,0.00020843,2]
[386659241,1758453052803,-500.0,0.00020843,2]
[386659242,1758453052813,-500.0,0.00020843,2]
[386659243,1758453052822,-500.0,0.00020843,2]
[386659244,1758453052833,-503.0271083,0.00020847,2]
[386659246,1758453052842,-504.639485,0.00020847,2]
[386659248,1758453052851,-217.63994139,0.00020847,2]
[386659249,1758453052861,-500.0,0.00020847,2]
[386659250,1758453052870,-601.56640286,0.00020847,2]
[386659251,1758453052880,-500.0,0.00020847,2]
[386659252,1758453052889,-500.0,0.00020847,2]
[386659253,1758453052899,-500.0,0.0002085,2]
[386659254,1758453052910,-500.0,0.0002085,2]
[386659255,1758453052921,-500.0,0.0002085,2]
[386659256,1758453052934,-500.0,0.0002085,2]
[386659257,1758453052943,-500.0,0.0002085,2]
[386659258,1758453052952,-158.56978987,0.0002085,2]
[386659259,1758453052962,-500.0,0.0002085,2]
[386659260,1758453052974,-500.0,0.0002085,2]
[386659261,1758453052983,-500.0,0.0002085,2]
[386659262,1758453052993,-792.0,0.00020888,2]
[386659263,1758453053006,-360.0,0.00020888,2]
[386659264,1758453053017,-420.0,0.00020888,2]
[386659265,1758453053027,-420.0,0.00020888,2]
[386659266,1758453053037,-12295.41489781,0.00020972,2]
[386659267,1758453053047,-500.0,0.00020976,2]
[386659268,1758453053058,-1680.0,0.00020989,2]
[386659269,1758453053068,-3000.0,0.00021,2]
[386659270,1758453053078,-3000.0,0.0002101,2]
[386659271,1758453053088,-3000.0,0.0002102,2]
[386659272,1758453053098,-3000.0,0.0002103,2]
[386659273,1758453053108,-3000.0,0.0002104,2]
[386659274,1758453053118,-3000.0,0.0002105,2]
[386659275,1758453053128,-3000.0,0.0002106,2]
[386659276,1758453053139,-3000.0,0.0002107,2]
[386659277,1758453053149,-360.0,0.00021071,2]
[386659278,1758453053159,-3000.0,0.0002108,2]
[386659279,1758453053169,-3000.0,0.0002109,2]
[386659280,1758453053179,-480.0,0.00021095,2]
[386659281,1758453053189,-480.0,0.00021095,2]
[386659282,1758453053198,-480.0,0.00021095,2]
[386659283,1758453053208,-480.0,0.00021095,2]
[386659284,1758453053218,-480.0,0.00021095,2]
[386659285,1758453053228,-480.0,0.00021095,2]
[386659286,1758453053237,-480.0,0.00021095,2]
[386659287,1758453053247,-8167.38,0.00021095,2]
[386659288,1758453053256,-496.06124471,0.00021095,2]
[386659289,1758453053266,-480.0,0.00021095,2]
[386659290,1758453053275,-480.0,0.00021095,2]
[386659291,1758453053287,-480.0,0.00021095,2]
[386659292,1758453053297,-480.0,0.00021095,2]
[386659293,1758453053306,-555.74,0.00021095,2]
[386659294,1758453053316,-1597.06,0.00021095,2]
[386659295,1758453053326,-480.0,0.00021095,2]
[386659296,1758453053335,-3050.76,0.00021095,2]
[386659297,1758453053345,-480.0,0.00021095,2]
[386659298,1758453053355,-964.98,0.00021095,2]
[386659299,1758453053365,-968.95,0.00021095,2]
[386659300,1758453053374,-480.0,0.00021095,2]
[386659301,1758453053384,-480.0,0.00021095,2]
[386659302,1758453053394,-878.63,0.00021095,2]
[386659303,1758453053403,-1103.49,0.00021095,2]
[386659304,1758453053413,-558.36,0.00021095,2]
[386659305,1758453053423,-789.27,0.00021095,2]
[386659306,1758453053433,-480.0,0.00021095,2]
[386659307,1758453053443,-480.0,0.00021095,2]
[386659308,1758453053453,-435.29943271,0.00021095,2]
[386659309,1758453053463,-480.0,0.00021095,2]
[386659310,1758453053474,-1887.16,0.00021095,2]
[386659311,1758453053483,-480.0,0.00021095,2]
[386659312,1758453053493,-480.0,0.00021095,2]
[386659313,1758453053503,-480.0,0.00021095,2]
[386659314,1758453053513,-787.45,0.00021095,2]
[386659315,1758453053522,-480.0,0.00021095,2]
[386659316,1758453053532,-480.0,0.00021095,2]
[386659317,1758453053541,-388.93709765,0.00021095,2]
[386659318,1758453053551,-480.0,0.00021095,2]
[386659319,1758453053561,-1368.44,0.00021095,2]
[386659320,1758453053571,-392.00834112,0.00021095,2]
[386659321,1758453053581,-480.0,0.00021095,2]
[386659322,1758453053590,-480.0,0.00021095,2]
[386659323,1758453053600,-480.0,0.00021095,2]
[386659324,1758453053610,-480.0,0.00021095,2]
[386659325,1758453053620,-480.0,0.00021095,2]
[386659326,1758453053630,-608.18,0.00021095,2]
[386659327,1758453053640,-480.0,0.00021095,2]
[386659328,1758453053650,-480.0,0.00021095,2]
[386659329,1758453053660,-480.0,0.00021095,2]
[386659330,1758453053670,-855.51,0.00021095,2]
[386659331,1758453053679,-480.0,0.00021095,2]
[386659332,1758453053690,-480.0,0.00021095,2]
[386659333,1758453053701,-912.57,0.00021095,2]
[386659334,1758453053711,-971.61,0.00021095,2]
[386659335,1758453053721,-886.06,0.00021095,2]
[386659336,1758453053731,-480.0,0.00021095,2]
[386659337,1758453053741,-967.35,0.00021095,2]
[386659338,1758453053752,-480.0,0.00021095,2]
[386659339,1758453053762,-247.16066953,0.00021095,2]
[386659340,1758453053772,-480.0,0.00021095,2]
[386659341,1758453053781,-480.0,0.00021095,2]
[386659342,1758453053791,-544.25,0.00021095,2]
[386659343,1758453053800,-480.0,0.00021095,2]
[386659344,1758453053810,-3000.0,0.000211,2]
[386659345,1758453053820,-151.0,0.000211,4]
[386659346,1758453053830,-3000.0,0.0002111,2]
[386659347,1758453053840,-2000.0,0.00021116,2]
[386659348,1758453053850,-2000.0,0.00021116,2]
[386659349,1758453053860,-2000.0,0.00021116,2]
[386659350,1758453053870,-2000.0,0.00021116,2]
[386659351,1758453053880,-1500.0,0.00021116,2]
[386659352,1758453053890,-4557.992543,0.0002112,2]
[386659353,1758453053899,-2580.97449882,0.00021209,2]
[386659354,1758453053909,-4000.0,0.0002125,4]
[386659355,1758453053919,-500.0,0.00021331,2]
[386659356,1758453053929,-500.0,0.00021331,2]
[386659357,1758453053940,-500.0,0.00021339,2]
[386659358,1758453053950,-500.0,0.00021339,2]
[386659359,1758453053959,-500.0,0.00021347,2]
[386659360,1758453053969,-503.37110723,0.00021347,2]
[386659361,1758453053979,-500.0,0.00021347,2]
[386659362,1758453053989,-500.0,0.00021347,2]
[386659363,1758453053999,-500.0,0.00021347,2]
[386659364,1758453054008,-500.0,0.00021347,2]
[386659365,1758453054018,-500.0,0.00021347,2]
[386659366,1758453054028,-500.0,0.00021347,2]
[386659367,1758453054038,-500.0,0.00021347,2]
[386659368,1758453054047,-500.0,0.00021347,2]
[386659369,1758453054058,-500.0,0.00021347,2]
[386659370,1758453054067,-500.0,0.00021347,2]
[386659371,1758453054076,-500.0,0.00021347,2]
[386659372,1758453054087,-500.0,0.00021347,2]
[386659373,1758453054096,-480.0,0.00021369,2]
[386659374,1758453054106,-480.0,0.00021369,2]
[386659375,1758453054115,-480.0,0.00021369,2]
[386659376,1758453054126,-480.0,0.00021369,2]
[386659377,1758453054135,-480.0,0.00021369,2]
[386659378,1758453054146,-480.0,0.00021369,2]
[386659379,1758453054156,-480.0,0.00021369,2]
[386659380,1758453054166,-8167.38,0.00021369,2]
[386659381,1758453054176,-480.0,0.00021369,2]
[386659382,1758453054187,-480.0,0.00021369,2]
[386659383,1758453054198,-480.0,0.00021369,2]
[386659384,1758453054208,-480.0,0.00021369,2]
[386659385,1758453054218,-555.74,0.00021369,2]
[386659386,1758453054227,-1597.06,0.00021369,2]
[386659387,1758453054237,-480.0,0.00021369,2]
[386659388,1758453054247,-3050.76,0.00021369,2]
[386659389,1758453054257,-480.0,0.00021369,2]
[386659390,1758453054267,-964.98,0.00021369,2]
[386659391,1758453054277,-968.95,0.00021369,2]
[386659392,1758453054288,-480.0,0.00021369,2]
[386659393,1758453054297,-480.0,0.00021369,2]
[386659394,1758453054307,-878.63,0.00021369,2]
[386659395,1758453054449,-1103.49,0.00021369,2]
[386659396,1758453054460,-558.36,0.00021369,2]
[386659397,1758453054470,-789.27,0.00021369,2]
[386659398,1758453054479,-480.0,0.00021369,2]
[386659399,1758453054491,-480.0,0.00021369,2]
[386659400,1758453054501,-480.0,0.00021369,2]
[386659401,1758453054511,-1887.16,0.00021369,2]
[386659402,1758453054521,-480.0,0.00021369,2]
[386659403,1758453054531,-480.0,0.00021369,2]
[386659404,1758453054541,-480.0,0.00021369,2]
[386659405,1758453054550,-787.45,0.00021369,2]
[386659406,1758453054560,-480.0,0.00021369,2]
[386659407,1758453054569,-480.0,0.00021369,2]
[386659408,1758453054579,-480.0,0.00021369,2]
[386659409,1758453054589,-1368.44,0.00021369,2]
[386659410,1758453054599,-480.0,0.00021369,2]
[386659411,1758453054608,-480.0,0.00021369,2]
[386659412,1758453054618,-480.0,0.00021369,2]
[386659413,1758453054628,-480.0,0.00021369,2]
[386659414,1758453054638,-480.0,0.00021369,2]
[386659415,1758453054648,-608.18,0.00021369,2]
[386659416,1758453054657,-480.0,0.00021369,2]
[386659417,1758453054666,-480.0,0.00021369,2]
[386659419,1758453054676,-480.0,0.00021369,2]
[386659421,1758453054685,-855.51,0.00021369,2]
[386659423,1758453054694,-382.89752809,0.00021369,2]
[386659425,1758453054704,-480.0,0.00021369,2]
[386659427,1758453054714,-912.57,0.00021369,2]
[386659428,1758453054724,-971.61,0.00021369,2]
[386659429,1758453054733,-886.06,0.00021369,2]
[386659430,1758453054743,-480.0,0.00021369,2]
[386659431,1758453054752,-967.35,0.00021369,2]
[386659432,1758453054761,-480.0,0.00021369,2]
[386659433,1758453054772,-480.0,0.00021369,2]
[386659434,1758453054781,-151.0,0.00021369,2]
[386659435,1758453054791,-373.155315,0.00021369,2]
[386659436,1758453054800,-480.0,0.00021369,2]
[386659437,1758453054810,-544.25,0.00021369,2]
[386659438,1758453054820,-373.155315,0.00021369,2]
[386659439,1758453054829,-480.0,0.00021369,2]
[386659440,1758453054839,-373.155315,0.00021369,2]
[386659441,1758453054848,-373.155315,0.00021369,2]
[386659442,1758453054858,-553.0,0.00021385,2]
[386659443,1758453054868,-12091.26,0.00021389,2]
[386659444,1758453054877,-1000.0,0.00021391,2]
[386659445,1758453054887,-1000.0,0.00021391,2]
[386659446,1758453054897,-268.3084446,0.00021391,2]
[386659447,1758453054906,-1000.0,0.00021391,2]
[386659448,1758453054915,-1000.0,0.00021391,2]
[386659449,1758453054929,-1000.0,0.00021391,2]
[386659450,1758453054939,-1000.0,0.00021391,2]
[386659451,1758453054949,-1000.0,0.00021391,2]
[386659452,1758453054959,-571.88797371,0.00021391,2]
[386659453,1758453054970,-1000.0,0.00021391,2]
[386659454,1758453054979,-202.92122646,0.00021391,2]
[386659455,1758453054989,-1000.0,0.00021391,2]
[386659456,1758453055000,-1005.97193109,0.00021391,2]
[386659457,1758453055010,-1000.0,0.00021391,2]
[386659458,1758453055020,-1000.0,0.00021395,2]
[386659459,1758453055030,-500.0,0.00021395,2]
[386659460,1758453055039,-623.41079606,0.00021395,2]
[386659461,1758453055049,-1001.06831998,0.00021398,2]
[386659462,1758453055058,-1000.0,0.00021398,2]
[386659463,1758453055068,-1000.0,0.00021398,2]
[386659464,1758453055077,-1000.0,0.00021398,2]
[386659465,1758453055087,-1000.0,0.00021398,2]
[386659466,1758453055096,-1000.0,0.00021398,2]
[386659467,1758453055106,-257.58554608,0.00021398,2]
[386659468,1758453055116,-1008.0887507,0.00021398,2]
[386659469,1758453055126,-151.0,0.000214,4]
[386659470,1758453055136,-1657.066154,0.000214,2]
[386659471,1758453055146,-1000.0,0.00021524,2]
[386659472,1758453055156,-151.0,0.000216,4]
[386659473,1758453055165,-1099.89227555,0.000216,5]
[386659474,1758453055174,-250.043629,0.000216,2]
[386659475,1758453055184,-177.0,0.00021616,5]
[386659476,1758453055193,-460.0,0.00021619,2]
[386659477,1758453055203,-500.0,0.00021623,2]
[386659478,1758453055212,-500.0,0.00021642,2]
[386659479,1758453055222,-480.0,0.00021643,2]
[386659480,1758453055232,-480.0,0.00021643,2]
[386659481,1758453055241,-480.0,0.00021643,2]
[386659482,1758453055251,-480.0,0.00021643,2]
[386659483,1758453055260,-387.95985108,0.00021643,2]
[386659484,1758453055269,-480.0,0.00021643,2]
[386659485,1758453055280,-8167.38,0.00021643,2]
[386659486,1758453055291,-480.0,0.00021643,2]
[386659487,1758453055301,-480.0,0.00021643,2]
[386659488,1758453055311,-480.0,0.00021643,2]
[386659489,1758453055322,-352.22685273,0.00021643,2]
[386659490,1758453055517,-480.0,0.00019178,2]
[386659491,1758453055527,-488.64970808,0.00019452,2]
[386659492,1758453055538,-480.0,0.00019726,2]
[386659493,1758453055548,-2051.9,0.00020273,2]
[386659494,1758453055558,-2051.9,0.00020547,2]
[386659495,1758453055568,-2051.9,0.00020821,2]
[386659496,1758453055578,-2051.9,0.00021095,2]
[386659497,1758453055588,-127.77314727,0.00021643,2]
[386659498,1758453055598,-555.74,0.00021643,2]
[386659499,1758453055608,-1597.06,0.00021643,2]
[386659500,1758453055618,-480.0,0.00021643,2]
[386659501,1758453055628,-3050.76,0.00021643,2]
[386659502,1758453055639,-456.15802288,0.00021643,2]
[386659503,1758453055649,-964.98,0.00021643,2]
[386659504,1758453055659,-968.95,0.00021643,2]
[386659505,1758453055668,-480.0,0.00021643,2]
[386659506,1758453055678,-480.0,0.00021643,2]
[386659507,1758453055688,-878.63,0.00021643,2]
[386659508,1758453055698,-1103.49,0.00021643,2]
[386659509,1758453055708,-558.36,0.00021643,2]
[386659510,1758453055718,-789.27,0.00021643,2]
[386659511,1758453055728,-480.0,0.00021643,2]
[386659512,1758453055738,-547.36261781,0.00021643,2]
[386659513,1758453055747,-480.0,0.00021643,2]
[386659514,1758453055757,-1887.16,0.00021643,2]
[386659515,1758453055767,-480.0,0.00021643,2]
[386659516,1758453055777,-480.0,0.00021643,2]
[386659517,1758453055787,-480.0,0.00021643,2]
[386659518,1758453055796,-787.45,0.00021643,2]
[386659519,1758453055806,-480.0,0.00021643,2]
[386659520,1758453055816,-480.0,0.00021643,2]
[386659521,1758453055826,-480.0,0.00021643,2]
[386659522,1758453055836,-1368.44,0.00021643,2]
[386659523,1758453055847,-480.0,0.00021643,2]
[386659524,1758453055857,-480.0,0.00021643,2]
[386659525,1758453055866,-480.0,0.00021643,2]
[386659526,1758453055876,-480.0,0.00021643,2]
[386659527,1758453055885,-480.0,0.00021643,2]
[386659528,1758453055895,-608.18,0.00021643,2]
[386659529,1758453055905,-480.0,0.00021643,2]
[386659530,1758453055914,-480.0,0.00021643,2]
[386659531,1758453055925,-480.0,0.00021643,2]
[386659532,1758453055935,-855.51,0.00021643,2]
[386659533,1758453055945,-348.94535429,0.00021643,2]
[386659534,1758453055955,-912.57,0.00021643,2]
[386659535,1758453055965,-971.61,0.00021643,2]
[386659536,1758453055975,-151.0,0.00021643,2]
[386659537,1758453055984,-886.06,0.00021643,2]
[386659538,1758453055993,-480.0,0.00021643,2]
[386659539,1758453056003,-161.75985,0.00021643,2]
[386659540,1758453056013,-967.35,0.00021643,2]
[386659541,1758453056023,-480.0,0.00021643,2]
[386659542,1758453056032,-153.828049,0.00021643,2]
[386659543,1758453056042,-153.828049,0.00021643,2]
[386659544,1758453056052,-151.0,0.00021643,2]
[386659545,1758453056062,-153.828049,0.00021643,2]
[386659546,1758453056071,-153.828049,0.00021643,2]
[386659547,1758453056081,-151.0,0.00021643,2]
[386659548,1758453056091,-480.0,0.00021643,2]
[386659549,1758453056100,-151.0,0.00021643,2]
[386659550,1758453056111,-480.0,0.00021643,2]
[386659551,1758453056120,-544.25,0.00021643,2]
[386659552,1758453056130,-480.0,0.00021643,2]
[386659553,1758453056139,-259.803643,0.00021664,2]
[386659554,1758453056149,-259.803643,0.00021664,2]
[386659555,1758453056158,-259.803643,0.00021664,2]
[386659556,1758453056168,-259.803643,0.00021664,2]
[386659557,1758453056177,-151.0,0.00021664,2]
[386659558,1758453056187,-252.916333,0.00021664,2]
[386659559,1758453056197,-1014.68386253,0.00021664,2]
[386659560,1758453056206,-2500.0,0.00021664,2]
[386659561,1758453056215,-2000.0,0.00021664,2]
[386659562,1758453056225,-553.0,0.00021671,2]
[386659563,1758453056235,-553.0,0.0002172,2]
[386659564,1758453056245,-553.0,0.0002176,2]
[386659565,1758453056254,-553.0,0.00021776,2]
[386659566,1758453056264,-1300.0,0.00021808,2]
[386659567,1758453056273,-553.0,0.00021861,2]
[386659568,1758453056283,-1030.62166135,0.00021879,2]
[386659569,1758453056292,-1000.0,0.00021879,2]
[386659570,1758453056301,-1000.0,0.00021887,2]
[386659571,1758453056311,-1003.44169041,0.00021887,2]